bitfinex-derivatives/quotes_SOLF0:USTF0_20250413
["timestamp","ask_amount","ask_price","bid_price","bid_amount"]
[1744578010017,2.10704665,126.67,126.64,0.05582965]
[1744578010220,0.05484665,126.67,126.64,0.05582965]
[1744578010722,0.05484665,126.67,126.66,14.65350119]
[1744578011016,2.0666,126.73,126.66,14.65350119]
[1744578011215,2.0173,126.74,126.69,14.65350119]
[1744578011416,72.60602117,126.76,126.71,14.65350119]
[1744578012326,0.05390919,126.75,126.73,14.65350119]
[1744578012723,0.05390919,126.75,126.74,7.8915]
[1744578013518,0.05390919,126.75,126.73,7.8919]
[1744578013823,0.05390919,126.75,126.72,0.05568962]
[1744578014009,0.05390919,126.75,126.73,7.8922]
[1744578014209,0.05390919,126.75,126.72,0.05568962]
[1744578014414,0.05390919,126.75,126.66,403.66]
[1744578014415,39.66,126.74,126.65,2.003]
[1744578014615,2.0807,126.73,126.61,368.2655]
[1744578014821,2.0807,126.73,126.61,4.2655]
[1744578015211,23.4057735,126.71,126.6,39.66]
[1744578015412,39.66,126.7,126.6,39.66]
[1744578015612,0.05531838,126.67,126.64,0.05849985]
[1744578016015,7.95131838,126.67,126.64,0.05849985]
[1744578016722,0.05531838,126.67,126.64,0.05849985]
[1744578017420,0.05531838,126.67,126.64,39.71849985]
[1744578017824,0.05531838,126.67,126.66,7.8965]
[1744578019324,0.05531838,126.67,126.65,7.8969]
[1744578019924,0.05531838,126.67,126.64,0.05849985]
[1744578020422,0.05531838,126.67,126.59,7.9006]
[1744578020619,25.4178735,126.68,126.58,41.7439]
[1744578021016,2.0121,126.68,126.58,41.7439]
[1744578021320,2.0121,126.68,126.56,23.4057735]
[1744578021823,0.05433427,126.63,126.61,0.05317419]
[1744578022023,7.8987,126.63,126.61,0.05317419]
[1744578022223,0.0576351,126.63,126.61,0.05317419]
[1744578023428,7.9563351,126.63,126.61,0.05317419]
[1744578023624,0.0576351,126.63,126.61,0.05317419]
[1744578023927,7.899,126.62,126.61,0.05317419]
[1744578025628,23.4634086,126.63,126.52,6.2766]
[1744578025831,4.2526,126.61,126.52,6.2766]
[1744578026018,7.8999,126.61,126.53,23.4057735]
[1744578026222,7.8999,126.61,126.54,39.68]
[1744578026729,0.05521286,126.59,126.56,0.05055051]
[1744578028323,665.08,126.71,126.56,418.76209751]
[1744578028518,4.1049,126.7,126.6,23.4057735]
[1744578028727,4.1049,126.7,126.6,63.0857735]
[1744578028928,4.1049,126.7,126.62,7.8986]
[1744578029229,7.8968,126.66,126.62,7.8986]
[1744578029431,0.05613461,126.67,126.65,0.05262919]
[1744578029729,0.05613461,126.67,126.61,2.1276]
[1744578029930,0.05613461,126.67,126.65,0.05745079]
[1744578030333,7.8965,126.66,126.65,0.05745079]
[1744578030624,39.61613461,126.67,126.6,47.58]
[1744578031029,7.8994,126.62,126.6,39.68]
[1744578031228,39.56,126.67,126.57,45.839]
[1744578031428,39.56,126.67,126.57,43.6578]
[1744578031729,0.05215454,126.63,126.61,0.06024787]
[1744578032327,7.95115454,126.63,126.61,0.06024787]
[1744578032529,0.05215454,126.63,126.61,0.06024787]
[1744578032924,7.899,126.62,126.61,0.06024787]
[1744578034931,39.58,126.75,126.61,39.64024787]
[1744578035126,43.7884,126.75,126.62,27.5074735]
[1744578035432,43.7884,126.75,126.65,7.897]
[1744578035833,43.7884,126.75,126.62,27.5074735]
[1744578036029,23.4057735,126.73,126.62,4.1017]
[1744578036229,0.05477348,126.7,126.58,41.7454]
[1744578036425,47.4748,126.69,126.64,7.8975]
[1744578036630,7.8948,126.69,126.6,23.4057735]
[1744578036831,39.58,126.71,126.61,39.58]
[1744578037033,7.8944,126.7,126.65,7.8968]
[1744578037334,0.04983731,126.69,126.66,0.05608437]
[1744578037729,0.04983731,126.69,126.66,7.95228437]
[1744578038436,0.04983731,126.69,126.66,0.05608437]
[1744578039029,7.8956,126.68,126.66,0.05608437]
[1744578039632,0.04983731,126.69,126.66,0.05608437]
[1744578040531,39.56,126.74,126.66,23.46185787]
[1744578040836,2.0287,126.75,126.66,23.4057735]
[1744578041036,2.0287,126.75,126.65,41.6991]
[1744578041336,7.8931,126.72,126.68,7.8947]
[1744578041535,7.8931,126.72,126.65,41.6991]
[1744578041736,2.0287,126.75,126.65,41.6991]
[1744578041737,0.05289576,126.71,126.69,0.05007256]
[1744578041937,7.894,126.7,126.69,0.05007256]
[1744578042131,0.05289576,126.71,126.69,0.05007256]
[1744578042835,7.94649576,126.71,126.69,0.05007256]
[1744578043038,0.05289576,126.71,126.69,0.05007256]
[1744578045646,7.94669576,126.71,126.69,0.05007256]
[1744578046241,0.05289576,126.71,126.69,0.05007256]
[1744578046635,0.05289576,126.71,126.69,39.61007256]
[1744578047242,0.05289576,126.71,126.7,7.894]
[1744578047437,0.05289576,126.71,126.69,39.61007256]
[1744578047634,0.05289576,126.71,126.69,0.05007256]
[1744578048439,0.05289576,126.71,126.7,7.894]
[1744578049042,0.05289576,126.71,126.69,0.05007256]
[1744578049741,0.05289576,126.71,126.69,7.94467256]
[1744578050242,7.94629576,126.71,126.69,0.05007256]
[1744578050540,0.05289576,126.71,126.69,0.05007256]
[1744578050944,7.94679576,126.71,126.69,0.05007256]
[1744578051746,7.894,126.7,126.69,0.05007256]
[1744578052449,7.894,126.7,126.63,62.9657735]
[1744578052450,31.3057735,126.7,126.6,39.56]
[1744578052744,41.5825,126.69,126.57,426.9657735]
[1744578053244,7.8974,126.65,126.62,7.8986]
[1744578053441,41.5825,126.69,126.57,426.9657735]
[1744578053644,0.0523506,126.65,126.62,0.05550732]
[1744578054546,0.0523506,126.65,126.63,7.898]
[1744578055046,0.0523506,126.65,126.62,0.05550732]
[1744578055248,0.0523506,126.65,126.64,7.8978]
[1744578057458,39.56,126.74,126.68,7.895]
[1744578057650,39.56,126.74,126.63,23.4057735]
[1744578057843,39.56,126.74,126.66,7.8962]
[1744578058549,0.05261241,126.71,126.69,0.05160337]
[1744578059246,39.56,126.7,126.61,409.8231]
[1744578059448,39.56,126.7,126.61,45.8231]
[1744578059449,41.6074,126.7,126.61,45.8231]
[1744578059647,41.6074,126.7,126.61,43.7409]
[1744578059948,7.8969,126.66,126.62,7.8987]
[1744578060251,39.56,126.66,126.58,41.5397]
[1744578060443,7.8978,126.64,126.63,0.05663969]
[1744578060650,0.05273201,126.65,126.54,27.5206735]
[1744578060852,6.3286,126.63,126.52,39.46]
[1744578061151,23.4057735,126.61,126.5,1.9894]
[1744578061451,23.4057735,126.61,126.49,1.58115266]
[1744578061650,0.05939167,126.57,126.54,0.05934567]
[1744578061950,39.46,126.56,126.49,1.58115266]
[1744578062344,7.9054,126.52,126.48,27.81172371]
[1744578062744,43.7515,126.56,126.48,27.81172371]
[1744578062946,0.05266785,126.51,126.49,0.02032356]
[1744578063145,43.7515,126.56,126.49,0.02032356]
[1744578063451,0.05751783,126.51,126.49,0.02032356]
[1744578063642,39.51152026,126.51,126.49,0.02032356]
[1744578064046,0.05152026,126.51,126.49,0.02032356]
[1744578064550,7.95782026,126.51,126.49,0.02032356]
[1744578064751,0.05152026,126.51,126.49,0.02032356]
[1744578065055,7.95792026,126.51,126.49,0.02032356]
[1744578065249,0.05152026,126.51,126.49,0.02032356]
[1744578065750,7.95762026,126.51,126.49,0.02032356]
[1744578065950,0.05152026,126.51,126.49,0.02032356]
[1744578066849,39.48,126.5,126.42,2.0561]
[1744578067051,39.48,126.5,126.42,4.169]
[1744578067242,7.9073,126.49,126.45,7.9094]
[1744578067948,0.05811788,126.48,126.45,7.9094]
[1744578068552,0.05811788,126.48,126.47,7.9084]
[1744578068755,23.4057735,126.61,126.47,39.5]
[1744578068954,2.0654,126.58,126.49,23.4057735]
[1744578069149,2.0827,126.6,126.52,23.4057735]
[1744578069452,2.0827,126.6,126.52,62.9057735]
[1744578069654,7.902,126.58,126.54,7.9036]
[1744578069855,0.05050431,126.57,126.55,0.05803714]
[1744578070151,0.05050431,126.57,126.56,7.9028]
[1744578070353,2.0654,126.63,126.55,0.05803714]
[1744578070551,2.0654,126.63,126.54,23.4057735]
[1744578070749,7.8991,126.62,126.56,7.9023]
[1744578070952,2.0654,126.63,126.56,7.9023]
[1744578071154,23.4057735,126.58,126.4,364.0]
[1744578071457,23.4057735,126.55,126.41,4.2242]
[1744578071755,0.05382855,126.5,126.48,0.05751374]
[1744578072057,41.674,126.54,126.48,0.05751374]
[1744578072259,0.05379528,126.5,126.48,0.05751374]
[1744578072659,7.9071,126.49,126.48,0.05751374]
[1744578073061,0.05379528,126.5,126.48,0.05751374]
[1744578077563,7.9071,126.49,126.48,0.05751374]
[1744578080868,77.7686078,126.5,126.41,2.1686]
[1744578081163,2.0929,126.49,126.41,10.0807]
[1744578081355,2.0929,126.49,126.41,2.1686]
[1744578081764,2.0929,126.49,126.41,10.0806]
[1744578081967,7.9096,126.45,126.44,0.05110846]
[1744578083169,7.9123,126.41,126.37,2.0844]
[1744578083863,39.52,126.46,126.37,2.0844]
[1744578084271,0.05271232,126.43,126.37,2.0844]
[1744578084873,7.9119,126.42,126.39,7.913]
[1744578085170,0.05271232,126.43,126.37,2.0844]
[1744578085764,0.05271232,126.43,126.38,7.9137]
[1744578085971,0.05271232,126.43,126.37,2.0844]
[1744578086269,7.912,126.42,126.39,7.9132]
[1744578086470,7.912,126.42,126.37,2.0844]
[1744578086671,0.05271232,126.43,126.37,2.0844]
[1744578086871,0.05271232,126.43,126.37,40.29921252]
[1744578087362,0.05271232,126.43,126.41,7.9118]
[1744578087875,39.52,126.42,126.28,364.0]
[1744578088172,43.6412,126.42,126.29,6.2959]
[1744578088367,7.96548784,126.36,126.29,45.8159]
[1744578088573,0.05008784,126.36,126.29,45.8159]
[1744578089171,7.96568784,126.36,126.29,45.8159]
[1744578090770,0.05008784,126.36,126.29,45.8159]
[1744578091372,7.9161,126.35,126.29,45.8159]
[1744578091569,0.05008784,126.36,126.29,45.8159]
[1744578091770,7.9163,126.35,126.29,45.8159]
[1744578091969,0.0571436,126.34,126.29,45.8159]
[1744578092371,0.0571436,126.34,126.28,364.0]
[1744578094073,7.9174,126.33,126.28,364.0]
[1744578094274,0.0571436,126.34,126.28,364.0]
[1744578094477,7.9738436,126.34,126.28,364.0]
[1744578095279,7.9738436,126.34,126.3,7.9187]
[1744578096573,7.9738436,126.34,126.28,364.0]
[1744578096979,7.9738436,126.34,126.3,7.9187]
[1744578097479,0.0571436,126.34,126.3,7.9187]
[1744578097675,0.0571436,126.34,126.28,364.0]
[1744578098270,7.9185,126.31,126.28,7.9202]
[1744578098672,7.97147819,126.31,126.28,7.9202]
[1744578098981,7.97147819,126.31,126.27,12.0289]
[1744578099182,7.97147819,126.31,126.27,4.1086]
[1744578099674,0.05297819,126.31,126.27,2.0801]
[1744578099880,0.05297819,126.31,126.26,7.9211]
[1744578100181,0.05297819,126.31,126.24,368.2697]
[1744578100382,23.57829574,126.29,126.22,7.9237]
[1744578100577,23.57829574,126.29,126.2,45.8567]
[1744578101078,23.57829574,126.26,126.19,364.0]
[1744578101281,7.925,126.21,126.16,2.0409]
[1744578101583,0.05100101,126.24,126.16,9.9684]
[1744578101784,43.7802,126.25,126.16,9.9684]
[1744578102083,0.05696264,126.21,126.16,2.0409]
[1744578102382,0.05696264,126.21,126.16,366.0409]
[1744578102683,7.9229,126.24,126.16,366.0409]
[1744578102882,39.46,126.27,126.16,366.0409]
[1744578103181,7.9244,126.22,126.18,7.9263]
[1744578103381,23.57829574,126.26,126.16,366.0409]
[1744578103685,0.05415367,126.21,126.19,0.05437676]
[1744578103982,23.57829574,126.26,126.19,0.05437676]
[1744578104187,0.05923433,126.21,126.19,0.05437676]
[1744578104378,23.57829574,126.26,126.19,0.05437676]
[1744578104682,23.57829574,126.26,126.19,7.97997676]
[1744578104883,0.05572615,126.24,126.19,7.97997676]
[1744578105288,0.05572615,126.24,126.19,0.05437676]
[1744578107387,63.05829574,126.23,126.19,0.05437676]
[1744578107585,7.9253,126.2,126.19,0.05437676]
[1744578108076,7.9276,126.17,126.13,2.193]
[1744578108278,39.48,126.19,126.12,2.0852]
[1744578108481,39.48,126.19,126.13,7.9296]
[1744578108688,7.9277,126.17,126.12,2.0852]
[1744578109187,7.9281,126.16,126.13,7.9292]
[1744578109388,7.98404884,126.16,126.13,7.9292]
[1744578109581,0.05594884,126.16,126.13,7.9292]
[1744578109782,0.05594884,126.16,126.14,7.9288]
[1744578110086,0.05594884,126.16,126.12,2.0852]
[1744578110881,7.9288,126.15,126.12,2.0852]
[1744578111388,7.98404884,126.16,126.12,2.0852]
[1744578111587,0.05594884,126.16,126.12,2.0852]
[1744578111785,7.929,126.15,126.12,2.0852]
[1744578111986,0.05594884,126.16,126.12,2.0852]
[1744578112787,7.9288,126.15,126.12,10.0151]
[1744578115187,0.05594884,126.16,126.12,2.0852]
[1744578115789,0.05594884,126.16,126.09,4.2969]
[1744578115992,39.52,126.15,126.08,2.0181]
[1744578116184,23.57829574,126.24,126.08,366.0181]
[1744578116390,360.0,126.29,126.08,366.0181]
[1744578116391,2.0974,126.2,126.09,39.52]
[1744578116686,7.9288,126.15,126.12,7.9302]
[1744578116891,0.05062361,126.16,126.09,39.52]
[1744578117191,39.52,126.19,126.09,39.52]
[1744578117397,0.05029436,126.14,126.09,403.52]
[1744578118487,0.05029436,126.14,126.13,7.9297]
[1744578119588,0.05029436,126.14,126.12,7.9301]
[1744578120193,0.05029436,126.14,126.09,403.52]
[1744578120386,0.05029436,126.14,126.09,39.52]
[1744578120792,0.05029436,126.14,126.06,39.52]
[1744578120986,4.41539436,126.14,126.06,39.52]
[1744578121190,4.3651,126.14,126.06,39.52]
[1744578121485,0.05368479,126.11,126.06,39.52]
[1744578121686,39.53368479,126.11,126.03,2.1119]
[1744578121889,39.48,126.11,125.99,39.48]
[1744578122083,2.1739,126.1,126.0,28.57829574]
[1744578122287,0.05193371,126.07,126.0,30.76939574]
[1744578122484,0.05193371,126.07,126.0,394.76939574]
[1744578122897,0.05193371,126.07,126.0,396.1500194]
[1744578123095,0.05193371,126.07,126.03,23.57829574]
[1744578123293,0.05193371,126.07,126.04,43.7389]
[1744578124889,39.48,126.13,126.04,43.7389]
[1744578125096,39.48,126.13,126.04,407.7389]
[1744578125496,7.9313,126.11,126.04,407.7389]
[1744578125700,39.48,126.13,126.06,23.57829574]
[1744578125898,2.1815,126.14,126.06,23.57829574]
[1744578126097,0.05069321,126.11,126.08,0.05611716]
[1744578126598,0.05069321,126.11,126.08,39.53611716]
[1744578127195,0.05069321,126.11,126.08,0.05611716]
[1744578128704,7.98199321,126.11,126.08,0.05611716]
[1744578128905,0.05069321,126.11,126.08,0.05611716]
[1744578130106,7.9322,126.09,126.08,0.05611716]
[1744578130309,39.53069321,126.11,126.01,39.48]
[1744578130603,4.1154,126.1,126.0,7.1686]
[1744578131201,7.9338,126.07,126.0,7.1686]
[1744578131407,0.05315059,126.05,126.0,7.1686]
[1744578132307,0.05315059,126.05,126.03,7.9357]
[1744578132511,645.115788,126.17,126.04,23.57829574]
[1744578132712,41.6815,126.14,126.05,2.0353]
[1744578133009,7.93,126.13,126.07,23.57829574]
[1744578133510,2.1815,126.14,126.07,23.57829574]
[1744578133701,0.05267675,126.11,126.09,7.98485059]
[1744578133908,0.05267675,126.11,126.09,0.05315059]
[1744578134916,0.05267675,126.11,126.04,364.0]
[1744578135209,0.05267675,126.11,126.03,7.9355]
[1744578135410,7.9339,126.07,126.03,7.9355]
[1744578135612,39.5,126.12,126.01,41.5346]
[1744578135914,39.5,126.12,126.03,23.57829574]
[1744578136108,0.05950494,126.08,126.03,23.57829574]
[1744578136411,7.9339,126.07,126.01,405.5346]
[1744578136612,39.5,126.12,126.01,405.5346]
[1744578136917,7.9337,126.07,126.01,405.5346]
[1744578137211,2.1815,126.14,125.93,364.0]
[1744578137212,39.55413637,126.08,125.93,364.0]
[1744578137409,39.55413637,126.08,125.82,387.8464]
[1744578137410,7.9422,125.94,125.82,387.8464]
[1744578137612,23.57829574,126.0,125.88,23.57829574]
[1744578137810,39.5,126.0,125.89,2.2001]
[1744578138013,0.0557357,125.95,125.89,2.2001]
[1744578138310,39.5557357,125.95,125.82,63.07829574]
[1744578138608,39.5,125.95,125.86,27.59013123]
[1744578138812,0.05294553,125.9,125.86,27.59013123]
[1744578139016,7.9439,125.91,125.86,27.59013123]
[1744578139216,0.05312527,125.89,125.86,27.59013123]
[1744578139420,7.9425,125.93,125.86,27.59013123]
[1744578139617,0.05226604,125.89,125.86,67.11013123]
[1744578139916,39.5,125.98,125.88,0.05226604]
[1744578140115,2.0882,125.97,125.86,67.11013123]
[1744578140311,2.0882,125.97,125.88,23.57829574]
[1744578140616,7.9427,125.93,125.86,67.11013123]
[1744578140915,0.06001726,125.94,125.91,0.05226604]
[1744578141113,41.6082,125.97,125.86,27.59013123]
[1744578141114,7.9461,125.87,125.86,27.59013123]
[1744578141616,8.00151907,125.88,125.86,27.59013123]
[1744578141815,0.05591907,125.88,125.86,27.59013123]
[1744578142114,0.05591907,125.88,125.86,27.64239727]
[1744578142316,0.05591907,125.88,125.86,0.05226604]
[1744578143916,8.00141907,125.88,125.86,0.05226604]
[1744578144215,0.05591907,125.88,125.86,0.05226604]
[1744578144417,7.9461,125.87,125.86,0.05226604]
[1744578144715,0.05591907,125.88,125.86,0.05226604]
[1744578145116,8.00181907,125.88,125.86,0.05226604]
[1744578145318,0.05591907,125.88,125.8,4.1241]
[1744578145613,4.1296,125.89,125.8,4.1241]
[1744578145813,4.1296,125.89,125.79,40.94]
[1744578146210,7.9462,125.87,125.79,79.52685886]
[1744578146413,4.1296,125.89,125.79,79.52685886]
[1744578146613,0.05879229,125.84,125.79,79.52685886]
[1744578146818,0.05879229,125.84,125.8,2.1932]
[1744578147021,40.96,125.91,125.82,38.58685886]
[1744578147317,2.1251,125.93,125.83,40.96]
[1744578148325,0.05513159,125.89,125.87,0.05879229]
[1744578148617,7.9455,125.88,125.87,0.05879229]
[1744578148821,0.05513159,125.89,125.87,0.05879229]
[1744578149212,7.9455,125.88,125.87,0.05879229]
[1744578149416,0.05513159,125.89,125.87,0.05879229]
[1744578150520,0.05513159,125.89,125.87,41.01879229]
[1744578153218,8.00003159,125.89,125.87,41.01879229]
[1744578153418,0.05513159,125.89,125.87,0.05879229]
[1744578153816,7.9455,125.88,125.87,0.05879229]
[1744578154120,0.05513159,125.89,125.87,0.05879229]
[1744578154720,0.05513159,125.89,125.88,40.98]
[1744578154919,2.0568,125.96,125.88,40.98]
[1744578155220,2.0568,125.96,125.88,45.1752]
[1744578155719,2.0568,125.96,125.88,83.76205886]
[1744578155923,0.05058441,125.93,125.91,0.05342622]
[1744578156926,0.05058441,125.93,125.92,40.98]
[1744578158927,0.05058441,125.93,125.92,48.9229]
[1744578159122,47.3413,126.04,125.92,48.92]
[1744578159323,6.3613,126.04,125.94,38.58685886]
[1744578159529,80.94835946,126.11,125.97,38.58685886]
[1744578159731,2.0954,126.09,125.98,40.98]
[1744578160025,7.9353,126.05,126.01,7.9372]
[1744578160223,7.99386808,126.05,126.02,0.05632026]
[1744578160521,7.9359,126.04,126.02,0.05632026]
[1744578160717,0.05856808,126.05,126.02,0.05632026]
[1744578161028,7.936,126.03,126.02,0.05632026]
[1744578165130,7.9357,126.04,126.02,0.05632026]
[1744578165634,0.05856808,126.05,126.02,0.05632026]
[1744578165824,0.05856808,126.05,125.95,45.1032]
[1744578166025,40.96,126.06,125.96,7.9403]
[1744578166529,23.68598369,126.04,125.95,45.1032]
[1744578166729,7.9393,125.98,125.95,45.1032]
[1744578167131,7.9393,125.98,125.95,45.1605812]
[1744578167436,7.99832618,125.98,125.95,53.1012812]
[1744578167735,0.05902618,125.98,125.95,53.1012812]
[1744578168034,0.05902618,125.98,125.96,7.9403]
[1744578168432,0.05902618,125.98,125.95,45.1605812]
[1744578168732,0.05902618,125.98,125.96,7.9404]
[1744578170237,0.05902618,125.98,125.95,45.1605812]
[1744578170430,0.05902618,125.98,125.96,40.94]
[1744578171124,0.05902618,125.98,125.95,0.0573812]
[1744578171730,0.05902618,125.98,125.87,23.68598369]
[1744578171731,23.68598369,125.97,125.9,40.24]
[1744578171931,7.9442,125.9,125.88,40.24]
[1744578172128,63.92598369,125.94,125.82,23.68598369]
[1744578172334,7.9459,125.88,125.84,7.9476]
[1744578172734,7.9459,125.88,125.83,42.3404]
[1744578172928,0.05434061,125.87,125.86,7.9467]
[1744578173129,7.945,125.89,125.86,7.9467]
[1744578173432,0.05180868,125.88,125.86,7.9467]
[1744578173729,63.92598369,125.94,125.86,7.9467]
[1744578173926,0.05749378,125.88,125.86,7.99750683]
[1744578174125,63.92598369,125.94,125.86,7.99750683]
[1744578174126,7.9452,125.89,125.86,7.9467]
[1744578174335,0.05024079,125.88,125.86,0.05080683]
[1744578174532,23.73622448,125.88,125.8,40.24]
[1744578174933,23.68598369,125.88,125.8,48.1902]
[1744578175135,23.68598369,125.88,125.8,40.24]
[1744578175330,25.80398369,125.88,125.8,40.24]
[1744578175533,23.68598369,125.85,125.76,40.26]
[1744578175736,7.9499,125.81,125.76,40.26]
[1744578175931,7.9499,125.81,125.77,7.952]
[1744578176141,40.26,125.84,125.76,40.26]
[1744578176338,0.05211542,125.8,125.77,7.952]
[1744578176536,0.05211542,125.8,125.76,40.26]
[1744578177042,2.0686,125.89,125.78,23.68598369]
[1744578177240,2.0686,125.89,125.79,38.59990755]
[1744578177540,2.0686,125.89,125.8,40.26]
[1744578177742,7.9472,125.86,125.82,7.9489]
[1744578178040,0.05843595,125.85,125.83,0.05211542]
[1744578180348,383.8124,126.01,125.83,0.05211542]
[1744578180349,669.34,125.96,125.84,40.26]
[1744578180542,669.34,125.96,125.85,40.70850755]
[1744578180743,669.34,125.96,125.86,7.9465]
[1744578180944,669.34,125.96,125.85,40.70850755]
[1744578181144,669.34,125.96,125.87,7.9457]
[1744578181543,0.05457017,125.93,125.9,0.054565]
[1744578182346,0.05457017,125.93,125.91,7.9432]
[1744578183542,0.05457017,125.93,125.9,0.054565]
[1744578183943,0.05457017,125.93,125.82,2.1966]
[1744578184148,38.59990755,125.91,125.82,2.1966]
[1744578184339,7.9477,125.85,125.8,40.26]
[1744578185152,0.05725705,125.84,125.81,0.05588042]
[1744578187454,7.9492,125.82,125.81,0.05588042]
[1744578187951,0.05725705,125.84,125.81,0.05588042]
[1744578188152,8.00565705,125.84,125.81,0.05588042]
[1744578188353,0.05725705,125.84,125.81,0.05588042]
[1744578188654,40.28,125.94,125.83,38.59990755]
[1744578188853,40.28,125.94,125.84,40.28]
[1744578189056,4.2952,125.93,125.84,40.28]
[1744578189552,7.9452,125.89,125.84,40.28]
[1744578189753,0.05702755,125.9,125.87,0.05344499]
[1744578191751,7.9454,125.89,125.87,0.05344499]
[1744578191956,0.05702755,125.9,125.87,0.05344499]
[1744578192357,7.9455,125.88,125.87,0.05344499]
[1744578192658,0.05702755,125.9,125.83,40.28]
[1744578192956,40.59500755,125.92,125.83,40.28]
[1744578193855,0.05051304,125.89,125.86,0.05811692]
[1744578194259,0.05051304,125.89,125.8,40.28]
[1744578194459,40.28,125.9,125.8,40.28]
[1744578194858,7.9483,125.84,125.8,40.28]
[1744578195058,40.28,125.9,125.8,40.28]
[1744578195360,38.6539488,125.86,125.76,40.28]
[1744578195659,42.3765,125.85,125.76,40.28]
[1744578195955,669.95500755,125.92,125.78,38.59990755]
[1744578195956,0.05823793,125.82,125.78,38.59990755]
[1744578196156,40.28,125.9,125.79,4.2966]
[1744578196362,7.9477,125.85,125.79,4.2966]
[1744578196557,7.9477,125.85,125.8,40.28]
[1744578196754,40.28,125.9,125.8,40.28]
[1744578196954,7.9485,125.84,125.8,40.28]
[1744578197454,0.05415625,125.83,125.71,38.59990755]
[1744578197657,0.05415625,125.83,125.81,0.05991944]
[1744578197862,629.36,125.92,125.76,40.28]
[1744578198055,38.59990755,125.9,125.77,40.28]
[1744578198250,38.59990755,125.87,125.77,40.28]
[1744578198463,40.28,125.89,125.77,40.28]
[1744578198858,40.28,125.89,125.78,2.1926]
[1744578199061,0.06051595,125.84,125.78,2.1926]
[1744578199463,8.00851595,125.84,125.78,2.1926]
[1744578199661,0.06051595,125.84,125.78,2.1926]
[1744578199857,0.06051595,125.84,125.81,38.59990755]
[1744578200061,4.2504,125.91,125.81,80.39990755]
[1744578200264,4.2504,125.91,125.81,41.8]
[1744578201260,0.0549693,125.87,125.85,0.05260967]
[1744578201463,7.9467,125.86,125.85,0.05260967]
[1744578201863,38.59990755,125.86,125.78,366.1926]
[1744578202064,7.9495,125.82,125.78,366.1926]
[1744578202363,44.98,125.82,125.69,44.98]
[1744578202560,44.98,125.82,125.71,2.1467]
[1744578202961,0.05750299,125.78,125.71,2.1467]
[1744578203360,0.05750299,125.78,125.7,2.0082]
[1744578203562,38.59990755,125.8,125.7,2.0082]
[1744578203760,44.98,125.82,125.7,2.0082]
[1744578203959,0.05724026,125.75,125.7,2.0082]
[1744578204453,0.05724026,125.75,125.7,40.60810755]
[1744578205563,0.05724026,125.75,125.7,2.0082]
[1744578207668,2.0422,125.84,125.71,38.59990755]
[1744578207868,2.0422,125.84,125.74,38.59990755]
[1744578208067,2.0422,125.84,125.72,85.41990755]
[1744578208267,2.0422,125.84,125.75,38.59990755]
[1744578208467,46.82,125.86,125.75,402.59990755]
[1744578208668,46.82,125.86,125.76,49.0286]
[1744578208870,0.05095337,125.82,125.79,0.06022243]
[1744578209062,0.05095337,125.82,125.8,46.84]
[1744578209262,2.0422,125.89,125.8,46.84]
[1744578209663,7.9465,125.87,125.8,46.84]
[1744578209868,48.9921,125.91,125.81,38.59990755]
[1744578210068,7.9455,125.88,125.81,38.59990755]
[1744578210370,0.05048896,125.86,125.83,0.05675258]
[1744578210664,2.0611,125.93,125.84,85.43990755]
[1744578211970,0.05540019,125.9,125.87,0.05024055]
[1744578213974,7.9448,125.89,125.87,0.05024055]
[1744578214274,0.05540019,125.9,125.87,0.05024055]
[1744578214973,7.9455,125.88,125.87,0.05024055]
[1744578216774,46.82,125.89,125.8,46.82]
[1744578217374,7.9485,125.84,125.8,46.82]
[1744578217576,46.82,125.89,125.8,46.82]
[1744578217972,0.05706732,125.86,125.83,0.0594929]
[1744578220671,8.00406732,125.86,125.83,0.0594929]
[1744578220875,0.05706732,125.86,125.83,0.0594929]
[1744578221575,0.05706732,125.86,125.83,38.65940045]
[1744578221777,2.0501,125.94,125.84,4.2403]
[1744578221978,7.944,125.91,125.85,46.82]
[1744578222981,0.0607861,125.89,125.87,0.05704595]
[1744578223277,2.0501,125.94,125.87,0.05704595]